bitfinex/quotes_ETHUSD_20250726
["timestamp","ask_amount","ask_price","bid_price","bid_amount"]
[1753569076589,5.29,3758.7,3758.6,2.66056306]
[1753569076795,5.78699836,3758.7,3758.6,2.66056306]
[1753569077097,5.29,3758.7,3758.6,2.66056306]
[1753569077338,6.48015617,3758.7,3758.2,2.66077813]
[1753569077496,0.7917,3758.5,3758.0,2.66093266]
[1753569077700,1.32295883,3758.4,3758.0,2.66093266]
[1753569078036,6.4409,3758.3,3757.9,0.001]
[1753569078242,0.1328,3758.1,3757.9,0.001]
[1753569078598,0.4551,3758.0,3757.9,0.001]
[1753569078831,1.1569,3758.0,3757.9,0.001]
[1753569079209,1.14016237,3758.0,3757.9,0.001]
[1753569080339,3.80115225,3758.0,3757.9,0.001]
[1753569080501,10.35458914,3758.0,3757.9,0.001]
[1753569080711,10.32132677,3758.0,3757.9,0.001]
[1753569081029,5.04132677,3758.0,3757.9,0.001]
[1753569081248,10.35458914,3758.0,3757.9,0.001]
[1753569081543,10.32132677,3758.0,3757.9,0.001]
[1753569083910,6.3869,3758.0,3757.9,0.001]
[1753569084114,5.275,3758.0,3757.9,0.001]
[1753569084631,5.275,3758.0,3757.9,2.66206069]
[1753569084833,0.1328,3758.1,3757.9,3.47186069]
[1753569085015,0.7917,3759.4,3757.9,3.47186069]
[1753569085016,5.273,3758.8,3758.5,2.66061666]
[1753569085206,5.273,3758.7,3758.6,2.6605651]
[1753569085539,5.9748,3758.7,3758.4,2.66068374]
[1753569085701,5.9748,3758.7,3758.5,2.66062363]
[1753569085901,5.273,3758.7,3758.5,2.66058447]
[1753569086105,5.273,3758.7,3758.6,2.6605651]
[1753569088747,5.9748,3758.7,3757.9,0.8108]
[1753569089054,0.03325706,3758.6,3757.9,0.8108]
[1753569089211,0.03325706,3758.6,3758.3,2.66075444]
[1753569089752,0.73505706,3758.6,3758.3,2.66075444]
[1753569090248,0.03325706,3758.6,3758.3,2.66075444]
[1753569090659,0.73505706,3758.6,3758.2,2.66083069]
[1753569091564,0.03325706,3758.6,3757.9,0.8108]
[1753569091725,1.1569,3758.5,3757.9,2.66199883]
[1753569091919,0.73505883,3758.4,3757.9,0.001]
[1753569092162,5.29525971,3758.3,3757.9,0.001]
[1753569092459,5.75035971,3758.3,3757.9,0.001]
[1753569092663,1.1569,3758.2,3757.9,0.001]
[1753569093023,0.7018,3758.1,3757.9,0.001]
[1753569093468,1.1569,3758.0,3757.9,0.001]
[1753569096466,0.1328,3758.1,3757.9,0.001]
[1753569096881,0.7018,3758.0,3757.9,0.001]
[1753569097682,1.1569,3758.0,3757.9,0.001]
[1753569098197,6.4089,3758.0,3757.9,0.001]
[1753569098497,5.9528,3758.0,3757.9,0.001]
[1753569099405,6.4079,3758.0,3757.9,0.001]
[1753569100410,0.7018,3759.1,3758.0,3.0]
[1753569100627,7.1818,3759.6,3758.1,1.3299]
[1753569100628,0.7018,3759.5,3758.1,1.3299]
[1753569101116,5.246,3759.4,3758.2,3.17394827]
[1753569101399,0.7018,3759.8,3759.5,2.65990679]
[1753569101600,5.245,3759.7,3759.4,2.6599687]
[1753569101804,0.7018,3759.8,3758.8,0.4229]
[1753569101984,5.245,3759.6,3759.5,2.65992818]
[1753569102513,5.245,3759.6,3759.4,2.65998063]
[1753569102677,5.245,3759.6,3759.3,2.66000697]
[1753569102867,5.245,3759.6,3759.1,2.6601914]
[1753569103185,5.9127,3759.6,3759.3,2.66001568]
[1753569103774,5.9127,3759.6,3759.3,2.56001568]
[1753569104190,5.9127,3759.6,3759.1,2.6601914]
[1753569104388,5.9127,3759.6,3759.4,2.65999856]
[1753569104595,5.245,3759.6,3759.5,2.65992818]
[1753569104803,0.002,3760.0,3759.9,2.6596452]
[1753569105103,0.002,3760.0,3759.9,3.1727452]
[1753569105590,0.002,3760.9,3759.9,3.1727452]
[1753569105591,0.002,3760.9,3760.1,3.46860373]
[1753569105798,0.002,3760.9,3760.7,2.65907942]
[1753569107718,0.002,3760.9,3760.5,2.65919648]
[1753569107719,0.6697,3760.8,3760.5,2.65919648]
[1753569107923,1.16313849,3760.7,3760.3,2.6593265]
[1753569108090,0.4622,3760.7,3760.4,2.65927707]
[1753569108293,0.6677,3760.6,3760.4,2.65927707]
[1753569108601,0.6677,3760.5,3760.3,2.65935404]
[1753569108774,0.4622,3760.6,3760.2,2.65936406]
[1753569108975,0.6677,3760.4,3760.3,2.65934486]
[1753569109170,0.4622,3760.6,3760.3,2.65934486]
[1753569109417,5.8997,3760.5,3760.1,2.6594654]
[1753569109629,5.232,3760.5,3760.1,2.6594654]
[1753569109916,5.232,3760.5,3759.7,0.7795]
[1753569109917,5.8997,3760.5,3760.3,2.65932667]
[1753569110622,5.229,3760.4,3760.3,0.1328]
[1753569110869,5.229,3760.4,3760.3,2.79216228]
[1753569111660,5.229,3760.4,3760.3,0.1328]
[1753569111959,5.229,3760.4,3758.3,4.0470033]
[1753569111960,6.88512385,3760.4,3759.1,1.2508]
[1753569112252,0.1328,3760.2,3759.1,0.8299]
[1753569112462,0.1328,3760.0,3759.5,0.1328]
[1753569112666,0.1328,3759.8,3759.2,2.79293759]
[1753569112835,0.03324733,3759.7,3759.2,0.1328]
[1753569113019,1.1299,3759.6,3759.2,0.1328]
[1753569113234,0.0332491,3759.5,3759.2,0.1328]
[1753569113433,5.8917,3759.4,3759.2,0.1328]
[1753569113666,1.2627,3759.3,3759.0,2.66025572]
[1753569113840,0.595,3759.3,3759.0,2.66025572]
[1753569114039,0.6677,3759.2,3759.0,2.66025572]
[1753569115072,0.6677,3759.2,3758.9,2.66035076]
[1753569115370,0.1328,3759.3,3758.9,2.66035076]
[1753569115371,0.6677,3759.1,3758.9,2.66035076]
[1753569115573,1.97235352,3759.0,3758.6,2.66055244]
[1753569115729,5.219,3758.9,3758.5,0.1328]
[1753569115933,0.03325529,3758.8,3758.5,2.79342621]
[1753569116160,0.70095529,3758.8,3758.5,0.1328]
[1753569116355,0.70095529,3758.8,3758.5,2.79339151]
[1753569116556,0.6677,3758.8,3758.5,0.1328]
[1753569116838,0.6677,3758.8,3758.6,2.66056092]
[1753569117758,0.6677,3758.8,3758.6,2.56056092]
[1753569117960,5.6812,3758.9,3758.5,2.79342933]
[1753569118292,0.6677,3758.7,3758.3,0.1328]
[1753569118444,0.03325706,3758.6,3758.2,2.66083538]
[1753569118775,0.1328,3758.8,3758.2,2.66083538]
[1753569118776,5.8817,3758.5,3758.2,2.66083538]
[1753569118939,0.6677,3758.4,3758.1,2.79367409]
[1753569119137,0.70095883,3758.4,3758.2,2.66083874]
[1753569119472,1.1299,3758.3,3757.9,2.66205751]
[1753569119674,1.1631606,3758.2,3757.9,0.001]
[1753569119842,5.3438,3758.1,3757.9,0.001]
[1753569120174,6.0115,3758.1,3757.9,0.001]
[1753569120375,0.6677,3758.0,3757.9,0.001]
[1753569120574,5.3438,3758.1,3757.9,2.66206069]
[1753569120789,3.18551788,3760.4,3758.0,0.4209]
[1753569120790,0.6677,3759.1,3758.0,0.4209]
[1753569120989,0.6677,3759.1,3758.7,2.66042709]
[1753569120990,5.21,3758.9,3758.7,2.66042709]
[1753569121291,0.6677,3759.6,3758.8,0.1328]
[1753569121489,5.3418,3759.5,3759.2,2.66007593]
[1753569121694,6.0095,3759.5,3759.2,2.66007593]
[1753569122575,0.6677,3759.4,3758.8,0.1328]
[1753569122775,0.1328,3759.1,3758.6,0.1328]
[1753569123013,0.1328,3758.9,3758.5,2.66058961]
[1753569123180,5.206,3758.8,3757.9,0.001]
[1753569123362,0.1328,3758.7,3758.3,2.66076387]
[1753569123693,0.1328,3758.7,3758.5,2.66061253]
[1753569124556,0.1328,3758.7,3758.5,2.66061767]
[1753569124956,0.8005,3758.7,3758.5,2.66061767]
[1753569125157,0.1328,3758.7,3758.4,2.66068838]
[1753569125357,0.6677,3758.6,3758.3,2.66077075]
[1753569125555,0.6677,3758.5,3758.2,0.1328]
[1753569125772,0.1328,3758.7,3758.4,2.66068689]
[1753569125973,5.2,3758.6,3758.5,2.66063589]
[1753569126765,5.8677,3758.6,3758.5,2.66063589]
[1753569127299,5.199,3758.8,3758.7,2.66049431]
[1753569127500,0.1328,3759.3,3759.1,2.66014979]
[1753569127798,5.197,3759.2,3759.1,2.66014979]
[1753569128103,0.9607,3759.5,3759.3,2.66006969]
[1753569128305,5.196,3759.4,3759.3,2.66006969]
[1753569128709,5.8637,3759.4,3759.1,2.66016153]
[1753569128868,5.8637,3759.4,3759.2,2.66008826]
[1753569129210,5.8637,3759.4,3759.3,2.66006969]
[1753569129977,5.8607,3759.4,3759.3,2.66006969]
[1753569131283,5.8607,3759.4,3759.1,2.6601518]
[1753569131489,0.6677,3759.3,3759.2,2.66012651]
[1753569132712,0.6677,3759.3,3758.9,0.1328]
[1753569132895,0.1328,3759.1,3759.0,2.66028198]
[1753569133095,5.187,3759.1,3759.0,2.66028198]
[1753569133825,5.8055,3759.1,3759.0,2.66028198]
[1753569134024,5.8055,3759.1,3758.9,2.66033143]
[1753569134928,0.6185,3759.0,3758.9,2.66033143]
[1753569137337,1.0805,3759.0,3758.9,2.66033143]
[1753569138305,0.1328,3759.2,3759.0,2.66028198]
[1753569138642,0.7513,3759.8,3759.4,2.65994361]
[1753569138846,5.175,3759.7,3759.5,2.65991164]
[1753569139215,0.6185,3759.6,3759.5,2.65991164]
[1753569139742,0.6185,3759.6,3759.4,2.65997858]
[1753569140037,0.6185,3759.6,3759.1,0.1328]
[1753569140216,0.6185,3759.5,3759.4,2.65995021]
[1753569144954,0.1328,3759.8,3759.4,2.65995021]
[1753569145155,6.85,3760.2,3759.6,2.65985743]
[1753569145315,5.162,3760.1,3759.6,0.1328]
[1753569145518,5.7805,3760.1,3759.6,0.1328]
[1753569145717,0.6185,3760.0,3759.6,0.1328]
[1753569146118,0.6185,3760.0,3759.9,2.6596452]
[1753569146542,0.6185,3760.0,3759.6,0.1328]
[1753569146715,5.624,3760.1,3759.9,2.6596452]
[1753569147519,0.6185,3760.0,3759.6,0.1328]
[1753569147715,0.6185,3759.9,3759.6,0.1328]
[1753569147955,5.157,3759.8,3759.6,0.1328]
[1753569148255,0.6185,3759.7,3758.6,5.9701]
[1753569148468,5.65224644,3759.8,3759.5,2.65991969]
[1753569148469,5.157,3759.8,3759.5,2.65991969]
[1753569148771,5.157,3759.8,3759.7,2.65978668]
[1753569150566,6.388,3760.2,3760.0,2.65957446]
[1753569150781,6.388,3760.2,3760.1,2.65950373]
[1753569150933,5.149,3760.2,3760.1,2.65950373]
[1753569151639,5.7675,3760.2,3760.0,2.65952087]
[1753569151985,0.6185,3760.1,3760.0,2.65952087]
[1753569152535,1.0805,3760.1,3759.8,2.65964956]
[1753569152749,0.462,3760.0,3759.8,2.65964956]
[1753569153053,6.2265,3759.9,3759.6,2.65984408]
[1753569153252,1.0805,3759.8,3759.6,2.6598095]
[1753569153570,1.0805,3759.7,3758.8,5.3379969]
[1753569153735,1.0805,3759.7,3759.4,2.79275554]
[1753569153941,1.0805,3759.6,3759.4,2.79275554]
[1753569154140,0.6185,3759.5,3759.4,2.79275554]
[1753569154336,0.6185,3759.5,3759.4,2.65995554]
[1753569156570,0.6185,3759.5,3758.7,3.50056369]
[1753569156571,1.7360991,3759.5,3758.4,0.751]
[1753569156742,0.1328,3759.3,3758.8,0.1328]
[1753569156948,5.137,3759.2,3758.8,0.1328]
[1753569157274,0.6185,3759.1,3759.0,2.66022419]
[1753569159587,0.6185,3759.1,3758.8,2.79316335]
[1753569159877,0.49525352,3759.0,3758.7,2.66047207]
[1753569160172,6.2105,3758.9,3758.7,2.66047207]
[1753569160369,0.6185,3758.8,3758.5,0.1328]
[1753569160537,0.6185,3758.7,3758.6,2.6605651]
[1753569160950,0.6185,3758.7,3758.5,2.66063013]
[1753569161184,0.49525529,3758.8,3758.5,2.66063013]
[1753569161351,0.6185,3758.6,3758.5,2.66063013]
[1753569163084,0.66,3758.6,3758.3,0.1328]
[1753569163381,0.66,3758.5,3758.3,2.7935762]
[1753569164881,0.66,3758.5,3758.4,2.66070668]
[1753569167289,0.4695,3758.8,3758.6,2.66053602]
[1753569167584,0.4695,3758.7,3758.6,2.66053602]
[1753569167976,1.1295,3758.7,3758.6,2.66053602]
[1753569168175,0.66,3758.7,3758.5,2.66062062]
[1753569168390,1.16275706,3758.6,3758.0,2.66098988]
[1753569168595,0.1328,3758.3,3757.8,0.1328]
[1753569168780,0.1328,3758.0,3757.6,0.001]
[1753569168979,0.1328,3757.7,3757.6,0.001]
[1753569169283,8.03627368,3757.7,3757.6,0.001]
[1753569169594,9.13250866,3757.7,3757.6,0.001]
[1753569170687,2.66155647,3757.2,3756.5,2.56603665]
[1753569170908,5.14227034,3757.1,3756.5,2.56603665]
[1753569171233,5.14227034,3757.1,3756.3,0.1328]
[1753569171234,0.1328,3756.9,3756.6,2.66195547]
[1753569171384,0.16607211,3756.9,3756.3,2.7949892]
[1753569171721,0.1328,3756.9,3756.4,2.6621233]
[1753569172079,5.106,3757.1,3756.5,1.5133]
[1753569172310,5.106,3757.1,3757.0,2.66169816]
[1753569173113,5.106,3757.1,3756.8,2.79459153]
[1753569173114,5.106,3757.1,3756.8,0.1328]
[1753569173288,5.106,3757.1,3757.0,2.66169816]
[1753569178130,5.106,3757.1,3757.0,2.61169816]
[1753569180027,0.7928,3757.3,3756.9,2.66175746]
[1753569180317,0.7928,3757.3,3757.1,2.66162731]
[1753569180520,0.7928,3757.3,3757.2,2.66155647]
[1753569180722,5.8798,3757.3,3757.2,2.66155647]
[1753569181621,6.3493,3757.3,3757.2,2.66155647]
[1753569181820,6.98423,3757.3,3756.1,0.8014]
[1753569181993,0.1328,3756.9,3756.4,0.1328]
[1753569182203,0.7928,3756.9,3756.8,2.66183986]
[1753569182388,5.8768,3756.9,3756.8,2.66183986]
[1753569183232,3.49252515,3757.7,3757.2,2.66150276]
[1753569183233,0.8313,3757.7,3757.2,2.66150276]
[1753569183532,0.1328,3757.3,3757.2,2.66155647]
[1753569183741,0.66,3758.1,3757.8,2.66112969]
[1753569183915,0.1328,3757.9,3757.2,0.8539]
[1753569184237,0.1328,3757.7,3757.6,2.66127315]
[1753569185493,0.7928,3757.7,3757.6,2.66127315]
[1753569186550,0.7928,3757.7,3757.2,0.1328]
[1753569186840,6.2065,3757.6,3757.3,2.66141539]
[1753569187050,5.077,3757.6,3757.3,2.66141539]
[1753569187210,1.1295,3757.5,3757.3,2.66141539]
[1753569187648,1.1295,3757.5,3757.4,2.6614148]
[1753569188142,0.66,3757.5,3757.4,2.6614148]
[1753569188349,0.1328,3757.7,3757.6,2.66127315]
[1753569188507,0.03325794,3758.5,3758.1,2.66085492]
[1753569188508,0.66,3758.4,3758.1,2.66085492]
[1753569188711,5.2018,3758.3,3758.1,2.66085492]
[1753569188912,5.2018,3758.3,3758.2,2.66084827]
[1753569189113,5.8618,3758.3,3758.2,2.66084827]
[1753569189308,5.8608,3758.3,3758.2,2.66084827]
[1753569190250,6.3303,3758.3,3757.8,2.79392634]
[1753569190411,5.2008,3758.3,3757.9,2.66106069]
[1753569190610,0.66,3758.2,3757.9,2.66106069]
[1753569190812,0.1328,3758.3,3758.1,2.66090238]
[1753569191034,5.064,3758.2,3758.1,2.66090238]
[1753569191849,5.724,3758.2,3757.8,0.1328]
[1753569192044,1.16276148,3758.1,3757.7,2.6611903]
[1753569192249,1.1087,3758.0,3757.8,2.6611233]
[1753569192549,0.6583,3757.9,3757.8,2.6611233]
[1753569192845,0.6583,3757.9,3757.5,0.1328]
[1753569193009,5.7183,3757.8,3757.6,2.66127315]
[1753569193431,1.14196502,3757.7,3756.6,0.8033]
[1753569193636,1.1087,3757.6,3757.0,2.66168818]
[1753569193840,0.1328,3757.4,3757.0,2.66168818]
[1753569194233,1.1087,3757.3,3757.0,2.66168818]
[1753569194433,6.1657,3757.2,3757.0,2.66168818]
[1753569194633,0.6583,3757.1,3757.0,2.66168818]
[1753569195436,5.057,3757.2,3757.1,2.66162731]
[1753569195947,5.7153,3757.2,3757.1,2.66162731]
[1753569196434,5.057,3757.2,3757.1,2.66162731]
[1753569198529,5.7153,3757.2,3757.1,2.66162731]
[1753569200330,5.7153,3757.2,3756.9,2.79456885]
[1753569200554,5.7153,3757.2,3757.1,2.66162731]
[1753569200752,6.1657,3757.2,3757.1,2.66162731]
[1753569200963,5.7153,3757.2,3757.1,2.66162731]
[1753569201382,5.7153,3757.2,3756.9,0.1328]
[1753569201603,0.8332,3756.4,3756.0,0.001]
[1753569201885,5.04,3756.3,3756.0,0.001]
[1753569202095,1.1087,3756.3,3756.0,0.001]
[1753569202242,5.039,3756.2,3756.0,0.001]
[1753569202447,5.6973,3756.2,3756.0,0.001]
[1753569202746,0.6583,3756.1,3756.0,0.001]
[1753569203175,6.1457,3756.1,3756.0,0.001]
[1753569205290,5.037,3756.1,3756.0,0.001]
[1753569205462,5.6953,3756.1,3756.0,0.001]
[1753569205797,6.1457,3756.1,3756.0,0.001]
[1753569206399,5.037,3756.1,3756.0,0.001]
[1753569207249,5.6953,3756.1,3756.0,0.001]
[1753569208290,13.62213878,3756.1,3756.0,0.001]
[1753569208447,14.39043878,3756.1,3756.0,0.001]
[1753569208643,3.98084859,3755.8,3755.7,0.001]
[1753569208875,12.04013044,3755.8,3755.7,0.001]
[1753569209083,13.11554859,3755.8,3755.7,0.001]
[1753569209384,14.81975949,3755.8,3755.7,0.001]
[1753569210287,14.81575949,3755.8,3755.7,0.001]
[1753569210452,9.899,3755.8,3755.7,0.001]
[1753569210653,9.4476,3755.8,3755.7,0.001]
[1753569210845,8.6793,3755.8,3755.7,0.001]
[1753569211054,9.1297,3755.8,3755.7,0.001]
[1753569211451,9.2625,3755.8,3755.7,0.001]
[1753569212999,13.1943637,3755.8,3755.7,0.001]
[1753569213697,10.53181511,3755.8,3755.7,0.001]
[1753569214060,13.1943637,3755.8,3755.7,0.001]
[1753569214992,13.7443637,3755.8,3755.7,0.001]
[1753569215195,14.5659637,3755.8,3755.7,0.001]
[1753569215795,6.33241511,3755.8,3755.7,0.001]
[1753569216001,6.33241511,3755.8,3755.7,2.66361948]
[1753569216002,5.1428,3755.8,3755.7,2.66361948]
[1753569216188,5.01,3755.8,3755.7,2.66361948]
[1753569216997,5.01,3755.8,3755.7,0.001]
[1753569218002,6.2515,3755.8,3755.7,0.001]
[1753569218184,7.1462249,3755.8,3755.7,0.001]
[1753569218691,6.2515,3755.8,3755.7,0.001]
[1753569220711,7.0143,3755.8,3755.7,0.001]
[1753569221062,10.22684859,3755.8,3755.7,0.001]
[1753569222792,13.22684859,3755.8,3755.7,0.001]
[1753569224401,3.96724492,3755.1,3755.0,0.004]
[1753569224593,9.12633298,3755.1,3755.0,0.004]
[1753569224789,9.99114492,3755.1,3755.0,0.004]
[1753569227295,12.99114492,3755.1,3755.0,0.004]
[1753569231108,2.373728,3755.7,3755.0,0.004]
[1753569231411,0.6016,3755.1,3755.0,0.004]
[1753569231619,11.79264492,3755.1,3755.0,0.004]
[1753569231820,13.00674492,3755.1,3755.0,0.004]
[1753569232367,13.00474492,3755.1,3755.0,0.004]
[1753569232608,14.57151,3755.1,3755.0,0.004]
[1753569232909,0.55,3754.3,3753.6,2.66407723]
[1753569233109,4.975,3754.2,3753.6,2.66407723]
[1753569233795,4.975,3754.2,3753.7,2.66402308]
[1753569234419,4.972,3754.1,3753.8,3.08486717]
[1753569234913,0.1328,3753.9,3753.8,3.08486717]
[1753569235099,5.1048,3753.9,3753.8,3.08486717]
[1753569235406,5.1048,3753.9,3753.8,2.66396717]
[1753569237296,6.396,3754.8,3753.9,2.66389621]
[1753569237482,4.966,3754.7,3754.0,0.6389]
[1753569237670,4.966,3754.7,3754.6,2.66339956]
[1753569238716,4.966,3754.7,3753.4,0.8135]
[1753569238717,0.7755,3754.6,3753.4,0.8135]
[1753569238877,0.55,3754.3,3753.4,0.8135]
[1753569239083,8.52430018,3754.2,3753.4,0.8135]
[1753569239326,2.66348963,3754.5,3753.4,0.8135]
[1753569239497,2.66348963,3754.5,3753.6,2.66409756]
[1753569239498,7.962,3754.4,3753.6,2.66409756]
[1753569239697,3.0,3754.3,3753.4,0.8135]
[1753569240003,2.66371521,3754.2,3753.4,3.47773632]
[1753569240222,4.962,3754.1,3753.4,0.8135]
[1753569240436,2.6636965,3754.2,3753.4,0.8135]
[1753569240723,4.962,3754.1,3753.5,2.66416594]
[1753569241887,4.959,3754.0,3753.5,2.66416594]
[1753569242088,4.959,3754.0,3753.4,3.47772366]
[1753569242303,4.959,3754.0,3753.5,2.66418009]
[1753569242527,4.959,3754.0,3753.4,0.8135]
[1753569242715,4.959,3754.0,3753.5,2.66418009]
[1753569243289,4.959,3754.0,3753.6,2.66410365]
[1753569243783,4.959,3754.0,3753.5,2.66416855]
[1753569243984,5.5606,3754.0,3753.4,0.8135]
[1753569244303,0.6016,3753.9,3753.4,0.8135]
[1753569244921,2.6643265,3753.3,3753.0,0.001]
[1753569245126,4.95,3753.2,3753.0,0.001]
[1753569245300,0.0333058,3753.1,3753.0,0.001]
[1753569245639,3.69536404,3753.1,3753.0,0.001]
[1753569245940,4.47556404,3753.1,3753.0,0.001]
[1753569246153,6.398,3753.9,3753.0,0.7965]
[1753569246462,4.948,3753.8,3753.1,3.30331519]
[1753569246757,4.948,3753.7,3753.1,0.4209]
[1753569246922,4.948,3753.7,3753.5,2.66415965]
[1753569247126,4.948,3753.7,3753.0,0.001]
[1753569247127,5.66446404,3753.1,3753.0,0.001]
[1753569247329,11.52526404,3753.1,3753.0,0.001]
[1753569247710,12.55616404,3753.1,3753.0,0.001]
[1753569249170,7.60916404,3753.1,3753.0,0.001]
[1753569249357,12.55316404,3753.1,3753.0,0.001]
[1753569249541,14.07491774,3753.1,3753.0,0.001]
[1753569249726,0.7802,3752.9,3750.8,0.7955]
[1753569250061,0.55,3752.5,3751.0,0.6389]
[1753569250272,0.55,3752.1,3750.8,0.7955]
[1753569250474,2.66544922,3751.8,3750.8,0.7955]
[1753569250627,4.97431822,3751.7,3750.9,2.66601175]
[1753569250831,3.21567148,3751.4,3750.4,3.46186605]
[1753569251072,8.15567148,3751.4,3750.4,3.46186605]
[1753569251375,8.15567148,3751.4,3750.4,0.7955]
[1753569251376,9.18557148,3751.4,3750.4,0.7955]
[1753569251726,1.5809,3751.4,3750.3,2.66643557]
[1753569251927,12.18557148,3751.4,3750.1,2.66658485]
[1753569252142,9.18610098,3751.4,3750.2,2.6665218]
[1753569252340,14.12410098,3751.4,3750.2,2.6665218]
[1753569252748,14.12310098,3751.4,3750.5,2.66628521]
[1753569252972,1.3824,3751.9,3750.8,0.7955]
[1753569253132,2.66567148,3751.4,3750.8,0.7955]
[1753569253327,5.5382,3751.4,3750.5,0.7955]
[1753569253639,5.5382,3751.4,3750.5,3.46178714]
[1753569253840,5.5382,3751.4,3751.3,1.7154]
[1753569253841,4.936,3751.4,3751.3,1.7154]
[1753569254040,4.935,3751.4,3751.3,4.77068254]
[1753569254253,6.4,3752.5,3751.4,2.66567148]
[1753569254459,6.4,3752.5,3751.6,0.7955]
[1753569254775,6.4,3752.5,3751.5,3.30446862]
[1753569254776,4.934,3752.5,3752.4,2.66496109]
[1753569254973,4.934,3752.5,3752.4,3.30386109]
[1753569255178,0.6022,3753.8,3752.4,3.30386109]
[1753569255179,4.933,3752.6,3752.5,3.46039007]
[1753569255347,4.933,3752.8,3752.7,2.66474804]
[1753569257149,0.6022,3753.5,3752.9,2.66460603]
[1753569257345,4.929,3753.4,3752.9,2.66460603]
[1753569257546,0.6022,3753.3,3752.9,2.66460603]
[1753569258046,0.6022,3753.3,3752.5,1.2164]
[1753569258047,0.6022,3753.3,3753.0,2.66446447]
[1753569258246,0.6022,3753.3,3752.9,2.6645907]
[1753569258483,0.6022,3753.3,3753.0,2.66453011]
[1753569258861,0.6022,3753.3,3752.9,2.66454848]
[1753569259251,5.4035,3753.4,3752.5,0.7955]
[1753569259252,4.929,3753.4,3752.5,0.7955]
[1753569259679,0.8008,3754.6,3753.1,0.83]
[1753569259897,0.1328,3754.2,3753.9,3.49389621]
[1753569260107,4.923,3754.1,3753.9,3.62669621]
[1753569260602,4.922,3754.1,3753.9,3.62669621]
[1753569271002,4.922,3754.1,3753.9,0.1328]
[1753569271227,1.0787,3754.0,3753.7,2.66396799]
[1753569271458,0.6022,3753.9,3753.7,2.66396799]
[1753569272401,0.4765,3754.0,3753.7,2.66396799]
[1753569272677,0.6022,3753.8,3753.7,2.66396799]
[1753569273044,0.6022,3753.8,3753.7,2.66403814]
[1753569273566,1.0767,3753.8,3753.7,2.66403814]
[1753569273763,1.0767,3753.8,3753.6,2.66409794]
[1753569273966,0.4745,3753.8,3753.5,2.66418009]
[1753569274263,0.1336,3753.5,3753.0,2.79808433]
[1753569274435,4.895,3753.4,3753.0,2.79808433]
[1753569274943,1.0767,3753.3,3753.0,2.79808433]
[1753569275139,4.895,3753.4,3753.0,2.79808433]
[1753569275140,4.895,3753.4,3753.0,0.1336]
[1753569275344,4.895,3753.4,3753.2,2.6643335]
[1753569275345,0.6022,3753.3,3753.2,2.6643335]
[1753569275556,4.895,3753.4,3753.2,2.6643335]
[1753569276360,4.895,3753.4,3753.2,2.6643806]
[1753569276764,5.4972,3753.4,3753.2,2.6643806]
[1753569277157,5.4972,3753.4,3753.2,2.66438438]
[1753569277661,5.4972,3753.4,3753.2,2.66437273]
[1753569280485,0.1336,3753.5,3753.4,2.66425107]
[1753569280669,1.3616,3753.9,3753.0,2.79812607]
[1753569280670,0.1328,3753.9,3753.3,0.1336]
[1753569280847,4.883,3753.8,3753.7,2.66403814]
[1753569282014,0.002,3754.0,3753.9,3.44599621]
[1753569282151,0.002,3755.0,3754.7,3.44542862]
[1753569282356,4.882,3754.8,3754.7,3.44542862]
[1753569282590,4.882,3754.8,3754.7,3.57822862]
[1753569282887,0.002,3754.8,3754.7,3.57822862]
[1753569283087,0.002,3754.8,3754.7,4.81889342]
[1753569283762,0.002,3754.8,3754.7,3.57822862]
[1753569284703,3.21339835,3754.7,3753.9,2.66387877]
[1753569284853,4.876,3754.6,3753.9,2.66383066]
[1753569285052,5.4557,3754.6,3754.0,2.66382525]
[1753569285270,0.03329338,3754.5,3754.0,2.66382525]
[1753569285498,4.874,3754.4,3754.3,2.66361239]
[1753569285667,0.5797,3754.7,3754.4,2.66353634]
[1753569285885,4.874,3754.6,3754.4,2.66353634]
[1753569286090,1.0345,3754.5,3754.1,2.66369856]
[1753569286396,0.5797,3754.4,3754.2,2.66362159]
[1753569286989,0.5797,3754.4,3754.3,2.66361239]
[1753569287414,4.874,3754.6,3754.4,2.66354144]
[1753569287806,0.5797,3754.5,3754.4,2.66354144]
[1753569288419,0.002,3754.8,3754.7,2.66332862]
[1753569288589,4.871,3754.8,3754.7,2.66332862]
[1753569289372,0.002,3754.8,3754.7,2.66332862]
[1753569292587,0.5817,3754.8,3754.3,0.7838]
[1753569292791,0.5797,3754.7,3754.6,2.66334264]
[1753569294716,0.5797,3754.7,3754.4,2.66353225]
[1753569295017,1.0345,3754.6,3754.4,2.79633225]
[1753569295215,4.856,3754.5,3754.4,2.79633225]
[1753569295385,5.4357,3754.5,3754.4,2.79633225]
[1753569298215,0.002,3754.8,3754.7,2.66332862]
[1753569298584,4.852,3754.8,3754.7,2.79612862]
[1753569300298,4.851,3754.8,3754.7,4.04412862]
[1753569300490,4.851,3754.8,3754.7,4.21692862]
[1753569300823,0.002,3754.8,3754.7,4.9595641]
[1753569302222,0.002,3754.8,3754.7,4.7867641]
[1753569302791,0.002,3754.8,3754.7,7.7867641]
[1753569303121,0.002,3755.6,3755.4,2.66283218]
[1753569303322,0.002,3755.6,3755.5,2.9290445]
[1753569303509,4.843,3755.6,3755.5,3.0618445]
[1753569303840,4.843,3755.6,3755.5,2.79556128]
[1753569304436,5.4227,3755.6,3755.5,2.79556128]
[1753569304792,4.843,3755.6,3755.5,2.79556128]
[1753569306091,4.843,3755.6,3755.5,3.60636128]
[1753569307395,0.002,3755.6,3755.5,3.60636128]
[1753569307603,0.002,3755.6,3755.5,4.54166285]
[1753569308304,1.0365,3755.6,3755.5,2.79556128]
[1753569315715,1.0365,3755.6,3754.9,5.63467424]